bitfinex/quotes_BTCUSD_20250219
["timestamp","ask_amount","ask_price","bid_price","bid_amount"]
[1739948881107,0.17675965,95898.0,95897.0,0.0008508]
[1739948883139,0.17275965,95898.0,95897.0,0.0008508]
[1739948883586,0.17675965,95898.0,95897.0,0.0008508]
[1739948885217,0.160416,95898.0,95897.0,0.0008508]
[1739948886080,0.15,95900.0,95897.0,0.0008508]
[1739948886278,0.306416,95898.0,95897.0,0.0008508]
[1739948889787,0.3227595,95898.0,95897.0,0.0008508]
[1739948893273,0.306416,95898.0,95897.0,0.0008508]
[1739948896406,0.3227595,95898.0,95897.0,0.0008508]
[1739948897507,0.32208645,95898.0,95897.0,0.0008508]
[1739948902855,0.32708645,95898.0,95897.0,0.0008508]
[1739948903238,0.31074295,95898.0,95897.0,0.0008508]
[1739948906528,0.31074295,95898.0,95897.0,0.0008108]
[1739948907486,0.31116845,95898.0,95897.0,0.0008108]
[1739948907688,0.32751192,95898.0,95897.0,0.0008108]
[1739948908854,0.02176897,95898.0,95897.0,0.0008108]
[1739948909543,0.02176897,95898.0,95897.0,0.0790108]
[1739948909746,0.02176897,95898.0,95897.0,0.40973145]
[1739948910160,0.208486,95930.0,95899.0,0.1232]
[1739948910161,0.02148778,95917.0,95899.0,0.1232]
[1739948910380,0.15639,95915.0,95905.0,0.156403]
[1739948910589,7.709e-05,95917.0,95902.0,0.0782]
[1739948910763,0.01634225,95913.0,95906.0,0.0811]
[1739948911119,0.17273325,95913.0,95906.0,0.0811]
[1739948911322,0.17273425,95913.0,95906.0,0.0811]
[1739948911530,0.01634225,95913.0,95906.0,0.0811]
[1739948912281,0.1564,95908.0,95906.0,0.0811]
[1739948913306,0.208526,95911.0,95906.0,0.0811]
[1739948913645,0.1564,95908.0,95906.0,0.0811]
[1739948913851,0.156401,95907.0,95906.0,0.0821]
[1739948914257,0.208522,95914.0,95906.0,0.0811]
[1739948914882,0.156399,95909.0,95906.0,0.0811]
[1739948915136,0.1564,95908.0,95906.0,0.0811]
[1739948915709,0.156401,95907.0,95906.0,0.0811]
[1739948916112,0.156401,95907.0,95906.0,0.0821]
[1739948916520,0.156401,95907.0,95906.0,0.0811]
[1739948917005,0.208529,95910.0,95906.0,0.0811]
[1739948917200,0.208517,95916.0,95906.0,0.0811]
[1739948917407,0.001,95907.0,95906.0,0.0811]
[1739948918968,0.001,95907.0,95906.0,0.08465132]
[1739948919167,0.001,95907.0,95906.0,0.08550212]
[1739948919396,0.1564,95908.0,95906.0,0.08550212]
[1739948919601,0.001,95907.0,95906.0,0.08550212]
[1739948920384,0.1564,95908.0,95906.0,0.08550212]
[1739948920598,0.001,95908.0,95906.0,0.08550212]
[1739948921112,0.156398,95909.0,95906.0,0.08550212]
[1739948921312,0.01634188,95914.0,95906.0,0.08550212]
[1739948921877,0.156399,95908.0,95906.0,0.08550212]
[1739948922658,0.01634188,95914.0,95906.0,0.08550212]
[1739948922860,0.001,95907.0,95906.0,0.08550212]
[1739948923063,0.156395,95911.0,95906.0,0.08550212]
[1739948923462,0.001,95908.0,95906.0,0.08550212]
[1739948923631,0.15,95916.0,95906.0,0.08550212]
[1739948923817,0.156396,95911.0,95906.0,0.08550212]
[1739948924025,0.001,95907.0,95906.0,0.08550212]
[1739948924551,0.001,95907.0,95906.0,0.08472865]
[1739948924752,0.156399,95909.0,95906.0,0.08472865]
[1739948925683,0.208527,95911.0,95906.0,0.08472865]
[1739948925889,0.156396,95910.0,95906.0,0.08472865]
[1739948926096,0.156396,95910.0,95906.0,0.08117733]
[1739948926305,0.156396,95910.0,95907.0,0.00355127]
[1739948926679,0.001,95908.0,95907.0,0.00355127]
[1739948927232,0.04199586,95917.0,95907.0,0.00355127]
[1739948927455,0.001,95910.0,95907.0,0.00355127]
[1739948927627,0.156399,95908.0,95907.0,0.00355127]
[1739948927837,0.208524,95912.0,95907.0,0.00355127]
[1739948928080,0.157399,95908.0,95906.0,0.08117733]
[1739948928458,0.157399,95908.0,95907.0,0.00355127]
[1739948929224,0.156401,95907.0,95906.0,0.08117733]
[1739948929651,0.156401,95907.0,95906.0,0.08472811]
[1739948929853,0.156401,95907.0,95906.0,0.00440158]
[1739948930066,0.156401,95907.0,95906.0,0.0008508]
[1739948931853,0.156401,95907.0,95906.0,0.0770508]
[1739948932661,0.157401,95907.0,95906.0,0.0770508]
[1739948933087,0.156401,95907.0,95906.0,0.1262508]
[1739948933319,0.158401,95907.0,95906.0,0.1262508]
[1739948933586,0.208528,95911.0,95906.0,0.12980201]
[1739948933888,0.157401,95907.0,95906.0,0.12980201]
[1739948934237,0.156401,95907.0,95906.0,0.12980201]
[1739948934655,0.158401,95907.0,95906.0,0.12980201]
[1739948937887,0.17474318,95907.0,95906.0,0.12980201]
[1739948938863,0.208528,95911.0,95906.0,0.12980201]
[1739948939062,0.01634218,95907.0,95906.0,0.12980201]
[1739948939821,0.01634218,95907.0,95906.0,0.1262508]
[1739948940048,0.01634218,95907.0,95906.0,0.12980201]
[1739948940940,0.01596438,95907.0,95906.0,0.12980201]
[1739948941147,0.17236538,95907.0,95906.0,0.12980201]
[1739948941342,0.15,95913.0,95906.0,0.12980201]
[1739948941776,0.156401,95907.0,95906.0,0.12980201]
[1739948941970,0.156401,95907.0,95906.0,0.1262508]
[1739948942191,0.01634195,95907.0,95906.0,0.12980201]
[1739948943374,0.002,95907.0,95906.0,0.12980201]
[1739948943860,0.158401,95907.0,95906.0,0.00440201]
[1739948944086,0.158401,95907.0,95906.0,0.0008508]
[1739948944399,0.1588265,95907.0,95906.0,0.0008508]
[1739948945310,0.1568265,95907.0,95906.0,0.0008508]
[1739948945522,0.3068265,95907.0,95906.0,0.0008508]
[1739948945726,0.3078265,95907.0,95906.0,0.0008508]
[1739948946368,0.32416914,95907.0,95906.0,0.0008508]
[1739948946591,0.32316914,95907.0,95906.0,0.0008508]
[1739948946873,0.32516914,95907.0,95906.0,0.0008508]
[1739948947386,0.01876814,95907.0,95906.0,0.0008508]
[1739948947586,0.17516914,95907.0,95906.0,0.0793508]
[1739948947801,0.17516914,95907.0,95906.0,0.08290195]
[1739948948142,0.17516914,95907.0,95906.0,0.0793508]
[1739948953405,0.1588265,95907.0,95906.0,0.0793508]
[1739948954269,0.0024255,95907.0,95906.0,0.1265508]
[1739948954468,0.0024255,95907.0,95906.0,0.1663348]
[1739948954781,0.0024255,95907.0,95906.0,0.16988595]
[1739948955805,0.0004255,95907.0,95906.0,0.16988595]
[1739948956030,0.0014255,95907.0,95906.0,0.16988595]
[1739948957378,0.0014255,95907.0,95906.0,0.32628895]
[1739948957588,0.0014255,95907.0,95906.0,0.34928895]
[1739948958192,0.0004255,95907.0,95906.0,0.34928895]
[1739948958599,0.0014255,95907.0,95906.0,0.34928895]
[1739948958799,0.0004255,95907.0,95906.0,0.34928895]
[1739948959229,0.0004255,95907.0,95906.0,0.35328895]
[1739948966003,0.0004255,95907.0,95906.0,0.4517926]
[1739948966224,0.0004255,95907.0,95906.0,0.45124145]
[1739948967614,0.0004255,95907.0,95906.0,0.44820145]
[1739948968109,0.0004255,95907.0,95906.0,0.45320145]
[1739948968314,0.0004255,95907.0,95906.0,0.44820145]
[1739948968715,0.0004255,95907.0,95906.0,0.45220145]
[1739948968927,0.0004255,95907.0,95906.0,0.45884585]
[1739948969286,0.0004255,95907.0,95906.0,0.45484585]
[1739948969705,0.0004255,95907.0,95906.0,0.45684585]
[1739948970997,0.0004255,95907.0,95906.0,0.45484585]
[1739948971198,0.0004255,95907.0,95906.0,0.45884585]
[1739948972524,0.0004255,95907.0,95906.0,0.45484585]
[1739948972934,0.0004255,95907.0,95906.0,0.45884585]
[1739948977242,0.0004255,95907.0,95906.0,0.45484585]
[1739948977675,0.0004255,95907.0,95906.0,0.46259632]
[1739948978297,0.0004255,95907.0,95906.0,0.46659632]
[1739948978504,0.0004255,95907.0,95906.0,0.46259632]
[1739948978841,0.0004255,95907.0,95906.0,0.46659632]
[1739948981747,0.0004255,95907.0,95906.0,0.79119632]
[1739948988102,0.0004255,95907.0,95906.0,0.80182112]
[1739948990703,0.0004255,95907.0,95906.0,0.79782112]
[1739948990909,0.0004255,95907.0,95906.0,0.80182112]
[1739948997368,0.0004255,95907.0,95906.0,0.79782112]
[1739948997567,0.0004255,95907.0,95906.0,0.80182112]
[1739949000361,0.0004255,95907.0,95906.0,0.79782112]
[1739949001185,0.0004255,95907.0,95906.0,0.89507042]
[1739949001506,0.0004255,95907.0,95906.0,0.89107042]
[1739949001707,0.0004255,95907.0,95906.0,0.89607042]
[1739949001962,0.0004255,95907.0,95906.0,0.89107042]
[1739949002364,0.0004255,95907.0,95906.0,0.89607042]
[1739949002866,0.0004255,95907.0,95906.0,0.80282112]
[1739949003624,0.0004255,95907.0,95906.0,0.79782112]
[1739949004071,0.0004255,95907.0,95906.0,0.80182112]
[1739949004272,0.0004255,95907.0,95906.0,0.79782112]
[1739949004820,0.0004255,95907.0,95906.0,0.80182112]
[1739949006519,0.0004255,95907.0,95906.0,0.90182112]
[1739949007881,0.0004255,95907.0,95906.0,0.89782112]
[1739949008356,0.0004255,95907.0,95906.0,0.90182112]
[1739949017129,0.0004255,95907.0,95906.0,0.89782112]
[1739949017350,0.0004255,95907.0,95906.0,0.90082112]
[1739949018148,0.0004255,95907.0,95906.0,0.89782112]
[1739949018374,0.0004255,95907.0,95906.0,0.90082112]
[1739949020639,0.0004255,95907.0,95906.0,0.89782112]
[1739949020921,0.0004255,95907.0,95906.0,0.90082112]
[1739949021448,0.0004255,95907.0,95906.0,0.89782112]
[1739949021597,0.0004255,95907.0,95906.0,0.90182112]
[1739949023806,0.0004255,95907.0,95906.0,0.89782112]
[1739949024208,0.0004255,95907.0,95906.0,0.90082112]
[1739949024773,0.0004255,95907.0,95906.0,0.89782112]
[1739949025175,0.0004255,95907.0,95906.0,0.90082112]
[1739949025358,0.0004255,95907.0,95906.0,0.89782112]
[1739949025779,0.0004255,95907.0,95906.0,0.90082112]
[1739949026173,0.0004255,95907.0,95906.0,0.89019632]
[1739949026588,0.15728826,95921.0,95907.0,0.023]
[1739949026794,0.15733175,95921.0,95908.0,0.10250365]
[1739949026998,0.156382,95919.0,95912.0,0.156392]
[1739949027198,0.19201302,95919.0,95913.0,0.12550365]
[1739949027398,0.03563102,95919.0,95913.0,0.28189365]
[1739949027651,0.15638,95920.0,95913.0,0.12550365]
[1739949027875,0.01633964,95918.0,95913.0,0.12550365]
[1739949028083,0.01633964,95918.0,95913.0,0.12546365]
[1739949029010,0.01633964,95918.0,95913.0,0.28185465]
[1739949030042,0.01633964,95918.0,95915.0,0.023]
[1739949030269,0.01633964,95918.0,95916.0,0.10250365]
[1739949030666,0.01633964,95918.0,95917.0,0.023]
[1739949031697,0.01633964,95918.0,95917.0,0.0296764]
[1739949033224,0.03686738,95919.0,95917.0,0.0296764]
[1739949033453,0.03686738,95919.0,95917.0,0.1860604]
[1739949033635,4.349e-05,95921.0,95917.0,0.0296764]
[1739949034041,4.349e-05,95921.0,95917.0,0.023]
[1739949034245,4.349e-05,95921.0,95919.0,0.023]
[1739949034462,4.349e-05,95921.0,95920.0,0.00667579]
[1739949037749,0.01638286,95921.0,95920.0,0.00667579]
[1739949038267,0.05291809,95921.0,95920.0,0.00667579]
[1739949039939,0.20929609,95921.0,95920.0,0.00667579]
[1739949040277,0.05291809,95921.0,95920.0,0.00667579]
[1739949040679,0.05334349,95921.0,95920.0,0.00667579]
[1739949040938,0.20972149,95921.0,95920.0,0.00667579]
[1739949041136,0.05334349,95921.0,95920.0,0.00667579]
[1739949042053,0.20972149,95921.0,95920.0,0.00667579]
[1739949042412,0.05334349,95921.0,95917.0,0.1831]
[1739949042619,0.20972149,95921.0,95920.0,0.00667573]
[1739949042844,0.156383,95918.0,95917.0,0.1]
[1739949043211,0.156383,95918.0,95917.0,0.10667599]
[1739949043611,0.156382,95919.0,95917.0,0.10667599]
[1739949044056,0.03700412,95921.0,95918.0,0.023]
[1739949044529,0.03700412,95921.0,95919.0,0.00667582]
[1739949044930,0.03800412,95921.0,95919.0,0.00667582]
[1739949045617,0.03900412,95921.0,95919.0,0.00667582]
[1739949045813,0.19338312,95921.0,95919.0,0.00667582]
[1739949046101,0.03900412,95921.0,95919.0,0.00667582]
[1739949046770,0.15638,95920.0,95919.0,0.02967582]
[1739949047818,0.17271971,95920.0,95919.0,0.02967582]
[1739949048016,0.0095359,95921.0,95919.0,0.02967582]
[1739949048298,0.01633971,95920.0,95919.0,0.02967582]
[1739949048531,0.01733971,95920.0,95919.0,0.02967582]
[1739949048862,0.01633971,95920.0,95919.0,0.02967582]
[1739949049686,0.01733971,95920.0,95919.0,0.02967582]
[1739949050091,0.01733971,95920.0,95919.0,0.023]
[1739949052201,0.17371971,95920.0,95919.0,0.023]
[1739949052396,0.17371971,95920.0,95919.0,0.08244]
[1739949052743,0.17371971,95920.0,95919.0,0.08911582]
[1739949052980,0.17371971,95920.0,95919.0,0.00667582]
[1739949053267,0.15738,95920.0,95919.0,0.00752682]
[1739949053551,0.15738,95920.0,95919.0,0.000851]
[1739949054010,0.22758,95920.0,95919.0,0.000851]
[1739949054212,0.15738,95920.0,95919.0,0.000851]
[1739949054936,0.15638,95920.0,95919.0,0.000851]
[1739949055355,0.15738,95920.0,95919.0,0.000851]
[1739949056208,0.15638,95920.0,95919.0,0.000851]
[1739949056672,0.17272001,95920.0,95919.0,0.000851]
[1739949057530,0.17472001,95920.0,95919.0,0.000851]
[1739949057730,0.17272001,95920.0,95919.0,0.000851]
[1739949058207,0.17572001,95920.0,95919.0,0.000851]
[1739949058410,0.17272001,95920.0,95919.0,0.000851]
[1739949058796,0.17572001,95920.0,95919.0,0.000851]
[1739949059000,0.17272001,95920.0,95919.0,0.000851]
[1739949059295,0.17572001,95920.0,95919.0,0.000851]
[1739949060584,0.17272001,95920.0,95919.0,0.000851]
[1739949060786,0.17672001,95920.0,95919.0,0.000851]
[1739949063232,0.16038,95920.0,95919.0,0.000851]
[1739949067520,0.15638,95920.0,95919.0,0.000851]
[1739949067725,0.17272035,95920.0,95919.0,0.000851]
[1739949067959,0.17672035,95920.0,95919.0,0.000851]
[1739949068086,0.17272035,95920.0,95919.0,0.000851]
[1739949068521,0.17972035,95920.0,95919.0,0.001851]
[1739949068689,0.17972035,95920.0,95919.0,0.000851]
[1739949069095,0.17972035,95920.0,95917.0,0.1]
[1739949069096,0.156383,95918.0,95917.0,0.1]
[1739949069297,0.306383,95918.0,95917.0,0.1]
[1739949069502,0.356583,95918.0,95917.0,0.09509092]
[1739949069706,0.356583,95918.0,95917.0,0.06509092]
[1739949069931,0.45908665,95918.0,95917.0,0.06509092]
[1739949070526,0.356583,95918.0,95917.0,0.06509092]
[1739949071096,0.359583,95918.0,95917.0,0.06509092]
[1739949071304,0.356583,95918.0,95917.0,0.06509092]
[1739949071510,0.356583,95918.0,95917.0,0.05028703]
[1739949071763,0.362583,95918.0,95917.0,0.00028703]
[1739949071973,0.37679282,95918.0,95917.0,0.00028703]
[1739949072492,0.37079282,95918.0,95917.0,0.00028703]
[1739949072749,0.37779282,95918.0,95917.0,0.00028703]
[1739949074418,0.37779282,95918.0,95913.0,0.0008508]
[1739949074419,0.30639,95914.0,95913.0,0.0008508]
[1739949076036,0.31339,95914.0,95913.0,0.0008508]
[1739949076863,0.35407479,95914.0,95913.0,0.0008508]
[1739949077179,0.34707479,95914.0,95913.0,0.0008508]
[1739949077384,0.30639,95914.0,95913.0,0.0008508]
[1739949077587,0.31339,95914.0,95913.0,0.0008508]
[1739949077800,0.30639,95914.0,95913.0,0.0008508]
[1739949078086,0.31339,95914.0,95913.0,0.0008508]
[1739949079881,0.41589365,95914.0,95913.0,0.0008508]
[1739949082792,0.31339,95914.0,95913.0,0.0008508]
[1739949083722,0.30639,95914.0,95913.0,0.0008508]
[1739949084111,0.31339,95914.0,95913.0,0.0008508]
[1739949084367,0.30639,95914.0,95913.0,0.0008508]
[1739949084738,0.31039,95914.0,95913.0,0.0008508]
[1739949084978,0.30639,95914.0,95913.0,0.0008508]
[1739949085387,0.31039,95914.0,95913.0,0.0008508]
[1739949086841,0.30639,95914.0,95913.0,0.0008508]
[1739949087151,0.154,95914.0,95913.0,0.0008508]
[1739949087343,0.004,95914.0,95913.0,0.2889418]
[1739949087552,0.004,95914.0,95913.0,0.41444545]
[1739949087752,0.004,95914.0,95913.0,0.42029046]
[1739949087996,4.266e-05,95938.0,95920.0,0.28808]
[1739949088308,0.156357,95935.0,95920.0,0.41358365]
[1739949088498,4.266e-05,95938.0,95920.0,0.41742806]
[1739949088689,0.156353,95937.0,95920.0,0.41742806]
[1739949088889,0.20851066,95938.0,95920.0,0.41742806]
[1739949089087,0.156354,95937.0,95920.0,0.41742806]
[1739949089295,0.20851066,95938.0,95920.0,0.41738806]
[1739949089471,0.0004254,95921.0,95920.0,0.41738806]
[1739949090454,0.0004254,95921.0,95920.0,0.41838806]
[1739949090677,0.0004254,95921.0,95920.0,0.41738806]
[1739949091282,0.3068034,95921.0,95920.0,0.00584441]
[1739949091696,0.15639,95914.0,95913.0,0.0008508]
[1739949091908,0.208514,95917.0,95913.0,0.0008508]
[1739949092127,0.156388,95915.0,95913.0,0.00597787]
[1739949092337,0.156388,95915.0,95913.0,0.0008508]
[1739949094919,0.158388,95915.0,95913.0,0.0008508]
[1739949097412,0.156388,95915.0,95913.0,0.0008508]
[1739949097531,0.158388,95915.0,95913.0,0.0008508]
[1739949098294,0.156388,95915.0,95913.0,0.0008508]
[1739949098675,0.162388,95915.0,95913.0,0.0008508]
[1739949098872,0.156388,95915.0,95913.0,0.0008508]
[1739949099069,0.161388,95915.0,95913.0,0.0008508]
[1739949102671,0.005,95915.0,95914.0,0.083]
[1739949103049,0.005,95915.0,95914.0,0.08812804]
[1739949103402,0.156384,95918.0,95914.0,0.08812804]
[1739949103611,0.156382,95919.0,95914.0,0.08812804]
[1739949103811,0.003,95915.0,95914.0,0.08812804]
[1739949104611,0.156384,95918.0,95914.0,0.08812804]
[1739949104807,0.0004254,95921.0,95915.0,0.023]
[1739949104984,0.1504255,95929.0,95917.0,0.078]
[1739949105185,0.3067915,95929.0,95917.0,0.078]
[1739949105393,0.1504255,95929.0,95919.0,0.155381]
[1739949105538,0.1504255,95929.0,95917.0,0.078]
[1739949105755,0.156374,95924.0,95918.0,0.0051277]
[1739949106192,0.156369,95927.0,95919.0,0.156381]
[1739949106534,0.15637,95926.0,95920.0,0.00512753]
[1739949106735,0.156373,95924.0,95917.0,0.078]
[1739949106953,0.002,95921.0,95918.0,0.0051277]
[1739949107153,0.156373,95924.0,95917.0,0.078]
[1739949107353,0.156373,95924.0,95918.0,0.0051277]
[1739949107821,0.156375,95923.0,95918.0,0.0051277]
[1739949108157,0.002,95927.0,95917.0,0.078]
[1739949108452,0.04315551,95929.0,95918.0,0.2205907]
[1739949108740,0.04315551,95929.0,95918.0,0.0051277]
[1739949109157,0.156369,95927.0,95919.0,0.156381]
[1739949109294,0.25164251,95929.0,95920.0,0.0817]
[1739949109534,0.04315551,95929.0,95920.0,0.0817]
[1739949109920,0.15637,95926.0,95921.0,0.00512744]
[1739949110258,0.003,95927.0,95921.0,0.00512744]
[1739949110463,0.15637,95926.0,95921.0,0.00512744]
[1739949110689,0.04315551,95929.0,95921.0,0.00512744]
[1739949110900,0.156376,95923.0,95921.0,0.00512744]
[1739949111455,0.156377,95922.0,95921.0,0.00512744]
[1739949113522,0.156376,95923.0,95921.0,0.00512744]
[1739949113886,0.157377,95922.0,95920.0,0.0817]
[1739949114045,0.001,95922.0,95920.0,0.0817]
[1739949114252,0.156378,95921.0,95920.0,0.0817]
[1739949117031,0.156377,95923.0,95920.0,0.0817]
[1739949117234,0.156377,95923.0,95920.0,0.08682753]
[1739949117593,0.001,95921.0,95920.0,0.08682753]
[1739949117795,0.156377,95922.0,95920.0,0.08682753]
[1739949118197,0.04315551,95929.0,95920.0,0.08682753]
[1739949118198,0.002,95923.0,95920.0,0.08682753]
[1739949119607,0.15637,95926.0,95920.0,0.08682753]
[1739949120594,0.001,95921.0,95920.0,0.08682753]
[1739949120958,0.156372,95925.0,95920.0,0.08682753]
[1739949121337,0.001,95926.0,95920.0,0.08682753]
[1739949121565,0.156374,95924.0,95920.0,0.08682753]
[1739949121767,0.208489,95928.0,95920.0,0.08682753]
[1739949122542,0.156372,95926.0,95920.0,0.08682753]
[1739949122748,0.208491,95927.0,95920.0,0.08682753]
[1739949123892,0.208491,95927.0,95921.0,0.023]
[1739949124092,0.04315551,95929.0,95921.0,0.023]
[1739949124301,0.156367,95928.0,95922.0,0.13202651]
[1739949124507,0.158369,95927.0,95922.0,0.13202651]
[1739949124734,0.15637,95926.0,95922.0,0.13202651]
[1739949124889,0.156372,95925.0,95922.0,0.13202651]
[1739949125693,0.156374,95924.0,95922.0,0.13202651]
[1739949125933,0.156375,95923.0,95922.0,0.13202651]
[1739949127208,0.156373,95924.0,95922.0,0.13202651]
[1739949128982,0.156375,95923.0,95922.0,0.1269]
[1739949129163,0.157373,95924.0,95923.0,0.00512642]
[1739949129360,0.157373,95924.0,95922.0,0.13202651]
[1739949129561,0.001,95924.0,95923.0,0.00512642]
[1739949130752,0.156372,95925.0,95923.0,0.00512642]
[1739949130953,0.156373,95924.0,95923.0,0.00512642]
[1739949131174,0.157373,95924.0,95923.0,0.00512642]
[1739949132022,0.001,95924.0,95923.0,0.00512642]
[1739949133071,0.157373,95924.0,95923.0,0.00512642]
[1739949133447,0.001,95924.0,95923.0,0.00512642]
[1739949133649,0.156372,95925.0,95923.0,0.00512642]
[1739949134073,0.20849,95928.0,95923.0,0.00512642]
[1739949134074,0.156367,95928.0,95923.0,0.00512642]
[1739949134299,0.15637,95927.0,95923.0,0.00512642]
[1739949134598,0.001,95924.0,95923.0,0.00512642]
[1739949134799,0.001,95924.0,95923.0,0.16150142]
[1739949135131,0.001,95924.0,95923.0,0.18450142]
[1739949135567,0.04315551,95929.0,95927.0,0.156368]
[1739949135985,0.04315551,95929.0,95928.0,0.028126]
[1739949136200,0.04315551,95929.0,95928.0,0.103826]
[1739949137016,0.04315551,95929.0,95928.0,0.102826]
[1739949137668,0.04315551,95929.0,95928.0,0.103826]
[1739949138330,0.04319671,95929.0,95928.0,0.103826]
[1739949138795,0.04319671,95929.0,95928.0,0.25532965]
[1739949140148,0.04319671,95929.0,95928.0,0.25432965]
[1739949140354,0.04319671,95929.0,95928.0,0.25532965]
[1739949143123,0.04319671,95929.0,95928.0,0.25432965]
[1739949143363,0.04319671,95929.0,95928.0,0.25532965]
[1739949143567,0.04319671,95929.0,95928.0,0.25432965]
[1739949143985,0.04319671,95929.0,95928.0,0.41169665]
[1739949144704,0.04319671,95929.0,95928.0,0.41069665]
[1739949145103,0.04319671,95929.0,95928.0,0.41169665]
[1739949148187,0.1708639,95939.0,95928.0,0.25532965]
[1739949148397,0.156353,95937.0,95930.0,0.023]
[1739949148603,0.156354,95936.0,95930.0,0.179362]
[1739949148807,0.1563955,95938.0,95932.0,0.023]
[1739949149005,4.35e-05,95938.0,95932.0,0.023]
[1739949149214,0.156352,95937.0,95933.0,0.00499994]
[1739949150191,4.35e-05,95938.0,95934.0,0.023]
[1739949150391,0.002,95937.0,95935.0,0.0811]
[1739949150705,4.35e-05,95938.0,95935.0,0.08609976]
[1739949150866,0.002,95937.0,95935.0,0.08609976]
[1739949151518,4.35e-05,95938.0,95935.0,0.08609976]
[1739949151902,0.001,95937.0,95935.0,0.08609976]
[1739949153740,4.35e-05,95938.0,95936.0,0.023]
[1739949154165,0.0020435,95938.0,95937.0,0.00499959]
[1739949154394,4.35e-05,95938.0,95937.0,0.00499959]
[1739949154770,0.1563935,95938.0,95937.0,0.00499959]
[1739949155177,0.12073233,95940.0,95937.0,0.00499959]
[1739949155416,0.0004255,95945.0,95937.0,0.00499959]
[1739949155656,0.156347,95940.0,95937.0,0.00499959]
[1739949155797,0.156344,95942.0,95937.0,0.00499959]
[1739949156346,0.24403448,95945.0,95937.0,0.00499959]
[1739949156907,0.03558048,95945.0,95939.0,0.0492]
[1739949157431,0.002,95940.0,95939.0,0.205549]
[1739949157630,0.002,95940.0,95939.0,0.21042322]
[1739949157855,0.002,95940.0,95939.0,0.05407422]
[1739949158086,0.03558048,95945.0,95939.0,0.21042322]
[1739949158285,0.03958048,95945.0,95944.0,0.239341]
[1739949158537,0.03958048,95945.0,95944.0,0.262341]
[1739949158737,0.03958048,95945.0,95944.0,0.26721475]
[1739949159301,0.03958048,95945.0,95944.0,0.4157184]
[1739949160030,0.03558048,95945.0,95944.0,0.7403184]
[1739949160177,0.0004255,95945.0,95944.0,0.7403184]
[1739949160371,0.0004255,95945.0,95944.0,0.7413184]
[1739949160604,0.0004255,95945.0,95944.0,0.7403184]
[1739949160964,0.0004255,95945.0,95944.0,0.7453184]
[1739949161174,0.0004255,95945.0,95944.0,0.7403184]
[1739949161644,0.0004255,95945.0,95944.0,0.74806901]
[1739949162031,0.0014255,95945.0,95944.0,0.7607042]
[1739949162437,0.0014255,95945.0,95944.0,0.6043632]
[1739949163005,0.0014255,95945.0,95944.0,0.7607042]
[1739949163335,0.0004255,95945.0,95944.0,0.74695359]
[1739949163538,0.0004255,95945.0,95944.0,0.75295359]
[1739949163745,0.0014255,95945.0,95944.0,0.7463184]
[1739949163983,0.0004255,95945.0,95944.0,0.7403184]
[1739949164119,0.0014255,95945.0,95944.0,0.7473184]
[1739949164329,0.17525772,95964.0,95944.0,0.5909774]
[1739949164533,4.349e-05,95956.0,95947.0,0.023]
[1739949164716,4.349e-05,95956.0,95949.0,0.023]
[1739949164921,4.349e-05,95956.0,95951.0,0.023]
[1739949165121,4.349e-05,95956.0,95953.0,0.023]
[1739949165326,0.156324,95954.0,95952.0,0.00486894]
[1739949165529,0.156325,95954.0,95946.0,0.0819]
[1739949165734,0.156325,95954.0,95953.0,0.00486885]
[1739949165934,4.349e-05,95956.0,95948.0,0.023]
[1739949166181,0.156329,95952.0,95950.0,0.023]
[1739949166514,0.208433,95954.0,95950.0,0.12550365]
[1739949166716,0.156328,95952.0,95950.0,0.12550365]
[1739949167463,0.156328,95952.0,95950.0,0.12950365]
[1739949167871,0.156328,95952.0,95946.0,0.0819]
[1739949167872,0.208434,95954.0,95946.0,0.0819]
[1739949168071,0.20847249,95956.0,95950.0,0.004]
[1739949168266,4.349e-05,95956.0,95950.0,0.004]
[1739949168525,0.156326,95953.0,95950.0,0.004]
[1739949169259,0.156328,95952.0,95950.0,0.004]
[1739949169463,0.156327,95953.0,95950.0,0.004]
[1739949169708,0.156328,95952.0,95950.0,0.004]
[1739949169929,0.156328,95952.0,95947.0,0.023]
[1739949170111,0.156329,95951.0,95947.0,0.023]
[1739949170354,0.156329,95951.0,95950.0,0.004]
[1739949170574,0.156329,95951.0,95947.0,0.023]
[1739949170750,0.156339,95945.0,95944.0,0.046]
[1739949171190,0.156339,95945.0,95940.0,0.0812]
[1739949171191,0.15634,95945.0,95940.0,0.0812]
[1739949171401,0.156342,95944.0,95940.0,0.0812]
[1739949171825,0.156343,95943.0,95940.0,0.0812]
[1739949172002,0.208431,95955.0,95940.0,0.0812]
[1739949172197,0.156343,95943.0,95940.0,0.0812]
[1739949173615,0.156343,95943.0,95940.0,0.0832]
[1739949173812,0.208435,95953.0,95940.0,0.0832]
[1739949174016,0.208419,95961.0,95940.0,0.0832]
[1739949174223,0.156339,95945.0,95940.0,0.0832]
[1739949174609,0.156341,95944.0,95940.0,0.0832]
[1739949176003,0.156341,95944.0,95940.0,0.0812]
[1739949176478,0.156342,95943.0,95940.0,0.0812]
[1739949176856,0.15634,95945.0,95940.0,0.0812]
[1739949177176,0.208431,95955.0,95940.0,0.0832]
[1739949177338,0.156329,95951.0,95940.0,0.0812]
[1739949177679,4.349e-05,95956.0,95940.0,0.0832]
[1739949177836,0.156334,95948.0,95940.0,0.0812]
[1739949178812,0.208431,95955.0,95940.0,0.0812]
[1739949179147,0.156333,95949.0,95940.0,0.0812]
[1739949179669,0.208438,95952.0,95940.0,0.0812]
[1739949179670,0.208437,95952.0,95940.0,0.0812]
[1739949179878,0.156331,95950.0,95940.0,0.0812]
[1739949180035,0.15633,95951.0,95940.0,0.0812]
[1739949180239,4.349e-05,95956.0,95942.0,0.045]
[1739949180513,0.156323,95955.0,95943.0,0.023]
[1739949180813,4.349e-05,95956.0,95945.0,0.023]
[1739949181009,4.349e-05,95956.0,95947.0,0.023]
[1739949181214,0.001,95951.0,95947.0,0.023]
[1739949181430,0.001,95951.0,95948.0,0.0582]
[1739949182597,0.15636449,95956.0,95948.0,0.0582]
[1739949182794,0.002,95955.0,95947.0,0.023]
[1739949183000,0.002,95955.0,95948.0,0.0582]
[1739949183358,0.002,95955.0,95948.0,0.0592]
[1739949183565,4.349e-05,95956.0,95948.0,0.0582]
[1739949183767,4.349e-05,95956.0,95947.0,0.023]
[1739949184196,0.156323,95955.0,95947.0,0.023]